{"text_format":"1","workbook":"xlsx","n_sheets":3,"sheets":["Лист1","Лист2","Лист3"],"not_rendered":{"charts":0,"images":0,"macros":0,"external_links":0,"defined_names":0,"comments":0,"pivot_tables":0},"unopened":[],"bounds":{"document_bytes":16777216,"sheet_cells":100000,"rows_first":2000,"rows_last":500,"rows_between":2000,"halvings":0,"cell_chars":16384,"cell_head_chars":4096},"cells_cut":0,"cells_raw":0,"read":"whole","date_system":"1900"}

{"sheet":"Лист1","index":0,"n_rows":33,"n_cols":7,"rows_kept":33,"cut":false,"hidden":false,"merged":[]}
["Ник (в каждой строке)","Ссылка","Наименование","Кол-во (без шт.)","Цена с сайта (без руб.)","Сумма","Цена со скидкой"]
["bluecat","http://scrapman.ru/shop/bumaga/bumaga-polistno-30h30/bumaga-scrapberry-s/bumaga-dlja-skrapbukinga-na-kryljah-veterka-30-30-sm-odnostoronja.html","Бумага для скрапбукинга \"На крыльях ветерка\", 30*30 см., односторонняя. ",2,10,{"$f":"D2*E2","v":20},{"$f":"F2-F2*0.25","v":15}]
["bluecat","http://scrapman.ru/shop/bumaga/bumaga-polistno-30h30/bumaga-scrapberry-s/bumaga-30h30-sm-shevron-goluboi.html","Бумага 30х30 см \" Шеврон Голубой\" ",2,12,{"$f":"D3*E3","v":24},{"$f":"F3-F3*0.25","v":18}]
["bluecat","http://scrapman.ru/shop/bumaga/bumaga-polistno-30h30/bumaga-scrapberry-s/bumaga-30h30-sm-shevron-lilovyi.html","Бумага 30х30 см \" Шеврон Лиловый\" ",2,12,24,18]
["bluecat","http://scrapman.ru/shop/bumaga/bumaga-polistno-30h30/bumaga-scrapberry-s/bumaga-dlja-skrapbukinga-zapiski-puteshestvenika-odnostoronja-30-30-sm-1-list.html","Бумага для скрапбукинга \"Записки путешественника\", односторонняя, 30*30 см., 1 лист. ",1,12,12,9]
["bluecat","http://scrapman.ru/shop/bumaga/bumaga-polistno-30h30/bumaga-scrapberry-s/bumaga-vals-snezhinok-30-30-sm-dvustoronja.html","Бумага \"Вальс снежинок\", 30*30 см., двусторонняя. ",2,12,24,18]
["bluecat","http://scrapman.ru/shop/bumaga/bumaga-polistno-30h30/bumaga-scrapberry-s/bumaga-30-5-30-5-sm-zimnja-skazka-iz-kolekci-zimnie-uzory.html","Бумага 30,5*30,5 см.,\"Зимняя сказка\" из коллекции Зимние узоры ",2,12,24,18]
["bluecat","http://scrapman.ru/shop/bumaga/bumaga-polistno-30h30/bumaga-scrapberry-s/bumaga-30-5-30-5-sm-odnostoronja-vokrug-sveta.html","Бумага 30,5*30,5 см., односторонняя Вокруг света. ",1,15,15,11.25]
["bluecat","http://scrapman.ru/shop/bumaga/bumaga-polistno-30h30/bumaga-scrapberry-s/bumaga-30-5-30-5-sm-vremja-chudes-staryi-novyi-god.html","Бумага 30,5*30,5 см., Время чудес \"Старый Новый Год\". ",2,15,30,22.5]
["bluecat","http://scrapman.ru/shop/bumaga/bumaga-polistno-30h30/bumaga-scrapberry-s/bumaga-30-5-30-5-sm-zima-kartochki-s-novym-godom.html","Бумага 30,5*30,5 см., Зима карточки \"С Новым Годом\". ",1,15,15,11.25]
["bluecat","http://scrapman.ru/shop/bumaga/bumaga-polistno-30h30/bumaga-fleur-design/bumaga-30-5-30-5-sm-dvustoronja-slova-kolekcija-techenie-vremeni.html","Бумага 30,5*30,5 см., двусторонняя, \"Слова\", коллекция Течение времени. ",2,17,34,25.5]
["bluecat","http://scrapman.ru/shop/bumaga/bumaga-polistno-30h30/bumaga-mr-painter/bumaga-dlja-skrapbukinga-dvustoronja-mr-painter-13939.html","Бумага для скрапбукинга двусторонняя \"Mr.Painter\" ",1,25,25,18.75]
["bluecat","http://scrapman.ru/shop/bumaga/bumaga-polistno-30h30/bumaga-kaisercraft/bumaga-christmas-eve-iz-kolekci-yuletide-ot-kaisercraft.html","Бумага Christmas Eve из коллекции Yuletide от Kaisercraft ",1,50,50,37.5]
["bluecat","http://scrapman.ru/shop/ukrashenija/konturnye-nakleiki/konturnye-nakleiki-s-prazdnikom-zolotye.html","Контурные наклейки С Праздником, золотые ",2,35,70,52.5]
["bluecat","http://scrapman.ru/shop/ukrashenija/konturnye-nakleiki/konturnye-nakleiki-park-miniatyur-cvet-serebro.html","Контурные наклейки \"Парк миниатюр\" цвет серебро",1,37,{"$f":"D15*E15","v":37},27.75]
["bluecat","http://scrapman.ru/shop/ukrashenija/konturnye-nakleiki/konturnye-nakleiki-korabli-zoloto.html","Контурные наклейки \"Корабли\", золото. ",1,40,{"$f":"D16*E16","v":40},30]
["bluecat","http://scrapman.ru/shop/shtamping/shtempelnye-podushechki/shtempelnaja-podushechka-cvet-serebro-40h40-m.html","Штемпельная подушечка, цвет серебро, 40х40 мм",1,53,53,39.75]
["bluecat","http://scrapman.ru/shop/shtamping/shtempelnye-podushechki/shtempelnaja-podushechka-cvetkrasnyi-40h40-m.html","Штемпельная подушечка, цветкрасный, 40х40 мм ",1,53,53,39.75]
["bluecat","http://scrapman.ru/shop/shtamping/shtempelnye-podushechki/shtempelnaja-podushechka-cvet-kofe-40h40-m.html","Штемпельная подушечка, цвет кофе, 40х40 мм ",1,53,53,39.75]
["bluecat","http://scrapman.ru/shop/ukrashenija/kartochki-vysechki/figurki-elochek-iz-plotnoi-bumagi-tri-cveta-3-sht.html","Фигурки елочек из плотной бумаги, три цвета, 3 шт ",3,7,21,15.75]
["bluecat","http://scrapman.ru/shop/ukrashenija/kartochki-vysechki/kartochki-damy.html","Карточки \"Дамы\". ",1,27,27,20.25]
["bluecat","http://scrapman.ru/shop/ukrashenija/kartochki-vysechki/shildiki-pozdravlenija-miks-belyi-matovyi-serebrjanyi.html","Шильдики \"Поздравления микс\", белый матовый/серебряный. ",3,30,90,67.5]
[null,null,null,null,null,0,0]
[null,null,null,null,null,0,0]
[null,null,null,null,null,0,0]
[null,null,null,null,null,0,0]
[null,null,null,null,null,0,0]
[null,null,null,null,null,null,0]
[null,null,null,null,null,null,0]
[null,null,null,null,null,null,0]
[null,null,null,null,null,null,0]
[null,null,null,null,null,null,0]
[null,null,null,null,null,null,0]

{"sheet":"Лист2","index":1,"n_rows":0,"n_cols":0,"rows_kept":0,"cut":false,"hidden":false,"merged":[]}

{"sheet":"Лист3","index":2,"n_rows":0,"n_cols":0,"rows_kept":0,"cut":false,"hidden":false,"merged":[]}